Cogmind - Beta 9.6 @@@ ROGUE MODE // 2020.08.17 @ 22:27:59 Player: Plexion Result: Destroyed by 8R-AWN with 8R-AWN's Boregun Performance ------------- Evolutions (0) 0 Regions Visited (3) 600 Robots Destroyed (9) 45 Value Destroyed (81) 81 Prototype IDs (22) 440 Alien Tech Used (0) 0 Bonus (290) 290 TOTAL SCORE: 1456 Bonus ------- Follower Combat Kills 74 Aligned with FarCom 300 Friendly Fire -84 Cogmind --------- Core Integrity 0/250 Matter 71/300 Energy 100/100 System Corruption 0% Temperature Cool (0) Movement Core (850) Ox16 Location -10/Exiles Parts ------- > --- POWER (1) -------- (None) > --- PROPULSION (2) --- (None) > --- UTILITY (2) ------ Large Storage Unit High-capacity Storage Unit > --- WEAPON (2) ------- Light Assault Rifle Light Assault Rifle > --- INVENTORY (18) --- Small Storage Unit Medium Storage Unit Medium Storage Unit Signal Interpreter Assault Rifle Grenade Launcher Mining Laser Peak State ------------ > --- POWER ------------ Ion Engine > --- PROPULSION ------- Wheel Wheel > --- UTILITY ---------- Large Storage Unit High-capacity Storage Unit > --- WEAPON ----------- Assault Rifle Heavy Battle Rifle > --- INVENTORY -------- Ion Engine Wheel Small Storage Unit Medium Storage Unit Medium Storage Unit Signal Interpreter Assault Rifle Light Assault Rifle Light Assault Rifle Grenade Launcher Mining Laser [Rating: 11] Favorites ----------- Power Ion Engine Engine Ion Engine Propulsion Wheel Wheel Wheel Utility High-capacity Storage Unit Storage High-capacity Storage Unit Weapon Assault Rifle Ballistic Gun Assault Rifle Launcher Grenade Launcher Build | -11 -10 -10 -10 ------- Run | Scr Mat Min Exi Slots Evolved . | . . . . Power . | . . . . Propulsion . | . . . . Utility . | . . . . Weapon . | . . . . Parts Attached 20 | 6 4 3 7 Power 3 | 1 . 1 1 Engine 3 | 1 . 1 1 Core . | . . . . Reactor . | . . . . Propulsion 5 | 2 . 1 2 Treads . | . . . . Leg . | . . . . Wheel 5 | 2 . 1 2 Hover . | . . . . Flight . | . . . . Utility 3 | 1 2 . . Device . | . . . . Storage 3 | 1 2 . . Processor . | . . . . Hackware . | . . . . Protection . | . . . . Artifact . | . . . . Weapon 9 | 2 2 1 4 Energy Gun . | . . . . Energy Cannon . | . . . . Ballistic Gun 8 | 2 2 . 4 Ballistic Cannon . | . . . . Launcher 1 | . . 1 . Special Weapon . | . . . . Impact Weapon . | . . . . Slashing Weapon . | . . . . Piercing Weapon . | . . . . Special Melee Weapon . | . . . . Unidentified Prototypes . | . . . . Parts Lost 10 | . . 1 9 Power 2 | . . . 2 Propulsion 5 | . . 1 4 Utility . | . . . . Weapon 3 | . . . 3 Highest Loss Streak 9 | . . 1 9 Average Slot Usage (%) 98 | . 98 100 95 Engine 13 | . 14 14 13 Wheel 26 | . 28 28 24 Storage 27 | . 26 28 28 Ballistic Gun 21 | . 28 19 19 Launcher 6 | . . 8 9 Naked Turns . | . . . . Heaviest Build 58 | 11 57 58 58 Greatest Support 20 | 20 20 20 20 Greatest Overweight (x) 2 | . 2 2 2 Average Overweight (x) 1 | . 1 2 2 Largest Inventory Capacity 18 | 6 18 18 18 Average Capacity 16 | 5 14 18 18 Most Carried 13 | 2 11 13 13 Average Carried 10 | 1 7 12 12 Final Capacity 18 | 6 18 18 18 Final Carried 13 | 2 11 13 7 Class Distribution -------------------- 100% | Mutant Dominant Class ---------------- Mutant | -10/Materials Mutant | -10/Mines Mutant | -10/Exiles Resources | -11 -10 -10 -10 ----------- Run | Scr Mat Min Exi Matter Collected 509 | 286 48 175 . Remotely . | . . . . Salvage Created 200 | 66 73 61 . Parts 21 | 2 9 10 . Haulers Intercepted . | . . . . Recyclers Shooed 1 | . . 1 . Parts Field Recycled . | . . . . Retrieved Matter . | . . . . Parts Self-Destructed . | . . . . Prevented . | . . . . Kills | -11 -10 -10 -10 ------- Run | Scr Mat Min Exi Combat Hostiles Destroyed 4 | . 3 1 . Guns 3 | . 3 . . AOE 1 | . . 1 . Classes Destroyed 5 | 1 3 1 . Worker 2 | . 1 1 . Tunneler 1 | . . 1 . Recycler 1 | 1 . . . Operator 1 | . 1 . . Swarmer 4 | . 3 1 . Best Kill Streak 3 | 1 3 2 . Combat Bots Only 3 | . 3 1 . Max Kills in Single Turn 1 | 1 1 1 . Gunslinging . | . . . . Exploded 1 | . . 1 . Melee . | . . . . Uniques/NPCs Destroyed . | . . . . Combat | -11 -10 -10 -10 -------- Run | Scr Mat Min Exi Damage Taken 1229 | . 301 119 809 Core 256 | . 100 . 156 Absorbed by Shields . | . . . . Core Remaining (%) 100 | 100 . . . Volleys Fired 78 | 13 15 12 38 Largest 2 | 2 2 2 2 Hottest 53 | 40 40 40 53 Shots Fired 154 | 26 30 22 76 Gun 152 | 26 30 20 76 Cannon . | . . . . Launcher 2 | . . 2 . Special . | . . . . Kinetic 152 | 26 30 20 76 Thermal . | . . . . Explosive 2 | . . 2 . Electromagnetic . | . . . . Robot Hit Streak 8 | 6 6 8 8 Robot Miss Streak 7 | 2 7 4 2 Penetration Max . | . . . . Secondary Targets 1 | . 1 . . Max Gunslinging Chain 1 | . 1 . . Shots Hit Robots 98 | 18 12 9 59 Core Hits 26 | 4 5 5 12 Critical Hits 1 | . . . 1 Critical Kills . | . . . . Critical Parts Destroyed . | . . . . Melee Attacks . | . . . . Impact . | . . . . Slashing . | . . . . Piercing . | . . . . Sneak Attacks . | . . . . Combat Hostiles . | . . . . Follow-up Attacks . | . . . . Damage Inflicted 1350 | 159 158 208 825 Guns 1275 | 159 158 133 825 Cannons . | . . . . Explosions 75 | . . 75 . Melee . | . . . . Ramming . | . . . . Kinetic 1275 | 159 158 133 825 Thermal . | . . . . Explosive 75 | . . 75 . Electromagnetic . | . . . . Impact . | . . . . Slashing . | . . . . Piercing . | . . . . Highest Corruption . | . . . . Average Corruption . | . . . . Corruption Purged . | . . . . Overload Shots . | . . . . Overflow Damage . | . . . . Projectiles . | . . . . Explosions . | . . . . Melee . | . . . . Knockbacks . | . . . . Impact . | . . . . Kinetic . | . . . . Secondary . | . . . . Self-Inflicted Damage . | . . . . Shots . | . . . . Rammed . | . . . . Targets Rammed . | . . . . Kicked . | . . . . Crushed . | . . . . Highest Temperature 12 | . . 8 12 Average Temperature 5 | . . 3 9 Received Heat Transfer 72 | . . 72 . Siege Activations . | . . . . Robots Corrupted . | . . . . Combat Hostiles . | . . . . Parts Fried . | . . . . Impact Corruptions . | . . . . Robots Melted . | . . . . Combat Hostiles . | . . . . Parts Melted . | . . . . Heat Transferred . | . . . . Parts Sabotaged . | . . . . Parts Stolen . | . . . . Parts Stripped . | . . . . Power Chain Reactions . | . . . . Missiles Intercepted . | . . . . Alert | -11 -10 -10 -10 ------- Run | Scr Mat Min Exi Peak Influence 196 | 5 109 196 . Average Influence 73 | 2 58 97 . Maximum Alert Level . | . . . . Low Security (%) 100 | 100 100 100 . Level 1 . | . . . . Level 2 . | . . . . Level 3 . | . . . . Level 4 . | . . . . Level 5 . | . . . . High Security . | . . . . Max Security . | . . . . Squads Dispatched . | . . . . Investigation . | . . . . Extermination . | . . . . Reinforcement . | . . . . Assault . | . . . . Garrison . | . . . . Intercept . | . . . . Construction Impeded . | . . . . Haulers Reinforced . | . . . . Stealth | -11 -10 -10 -10 --------- Run | Scr Mat Min Exi Distress Signals . | . . . . Communications Jammed . | . . . . Distress Signals . | . . . . Times Spotted 10 | . 4 5 1 Peak Tracking Total 3 | . 3 3 2 Tactical Retreats . | . . . . Traps | -11 -10 -10 -10 ------- Run | Scr Mat Min Exi Traps Triggered . | . . . . Indirectly . | . . . . Trap Hack Attempts . | . . . . Triggered . | . . . . Disarmed . | . . . . Reprogrammed . | . . . . Reused . | . . . . Traps Extracted . | . . . . Installed . | . . . . Triggered . | . . . . Machines | -11 -10 -10 -10 ---------- Run | Scr Mat Min Exi Machines Disabled 2 | . . 1 1 Max in Single Turn 1 | . . 1 1 Machines Sabotaged . | . . . . Garrisons Compromised . | . . . . Overloaded Fab Kills . | . . . . Fab Network Shutdowns . | . . . . Hacking | -11 -10 -10 -10 --------- Run | Scr Mat Min Exi Machines Accessed 3 | . 2 . 1 Terminals 2 | . 2 . . Fabricators . | . . . . Repair Stations . | . . . . Recycling Units . | . . . . Scanalyzers . | . . . . Garrison Access . | . . . . Total Hacks 8 | . 7 . 1 Successful 4 | . 3 . 1 Failed 4 | . 4 . . Catastrophic . | . . . . Database Lockouts . | . . . . Manual 5 | . 4 . 1 Terminals 7 | . 7 . . Fabricators . | . . . . Repair Stations . | . . . . Recycling Units . | . . . . Scanalyzers . | . . . . Garrison Access . | . . . . Terminal Hacks 3 | . 2 . 1 Branch Access Points 1 | . 1 . . Zone Layout 1 | . 1 . . EX-Prototype ID Bank 1 | . . . 1 Fabricator Hacks . | . . . . Repair Station Hacks . | . . . . Recycling Unit Hacks . | . . . . Scanalyzer . | . . . . Garrison Access Hacks . | . . . . Unauthorized Hacks 1 | . 1 . . Terminals 1 | . 1 . . Operators 1 | . 1 . . Fabricators . | . . . . Repair Stations . | . . . . Recycling Units . | . . . . Scanalyzers . | . . . . Garrison Access . | . . . . Data Cores Recovered 1 | . 1 . . Used 1 | . 1 . . Hacking Detections 2 | . 2 . . Full Trace Events . | . . . . Feedback Events . | . . . . Feedback Blocked . | . . . . Robot Schematics Acquired . | . . . . Robots Built . | . . . . Matter . | . . . . Time . | . . . . Total Robot Build Rating . | . . . . Part Schematics Acquired . | . . . . Parts Built . | . . . . Matter . | . . . . Time . | . . . . Total Part Build Rating . | . . . . Parts Repaired . | . . . . Time . | . . . . Parts Recycled . | . . . . Recycled Matter . | . . . . Retrieved Matter . | . . . . Retrieved Components . | . . . . Parts Scanalyzed . | . . . . Part Schematics Acquired . | . . . . Parts Damaged . | . . . . Bothacking | -11 -10 -10 -10 ------------ Run | Scr Mat Min Exi Used RIF Installer . | . . . . Robots Hacked . | . . . . Non-combat . | . . . . Combat . | . . . . Robot Hacks Applied . | . . . . Relay Couplers Released . | . . . . Robots Rewired . | . . . . Allies Hacked . | . . . . Hacks Repelled . | . . . . Allies | -11 -10 -10 -10 -------- Run | Scr Mat Min Exi Total Allies 3 | . . 3 . Largest Group 3 | . . 3 3 Highest-Rated Group 40 | . . 40 40 Highest-Rated Ally 16 | . . 16 16 Total Orders . | . . . . Ally Attacks 16 | . . 9 7 Total Damage 150 | . . 118 32 Kills 5 | . . 4 1 Allies Corrupted . | . . . . Allies Melted . | . . . . Intel | -11 -10 -10 -10 ------- Run | Scr Mat Min Exi Robot Analysis Total . | . . . . Derelict Logs Recovered 2 | . . 2 . Drone Launches . | . . . . Drone Recoveries . | . . . . Exploration | -11 -10 -10 -10 ------------- Run | Scr Mat Min Exi Turns Passed 1411 | 93 380 517 421 Spaces Moved 1093 | 53 327 463 250 Core 2 | 2 . . . Treads . | . . . . Legs . | . . . . Wheels 1091 | 51 327 463 250 Hover . | . . . . Flight . | . . . . Fastest Speed 50 | 50 80 100 100 Average Speed 98 | 78 96 100 100 Slowest Speed 100 | 80 100 100 100 Overloaded Moves . | . . . . Propulsion Burnouts . | . . . . Robots Hopped . | . . . . Cave-ins Triggered . | . . . . Exploration Rate (%) 46 | 4 33 86 62 Regions Visited 3 Branch Regions 2 Pre-discovered Areas 2 | . . 2 . Known Exits Taken 1 | . 1 . . Unknown Exits Taken 2 | 1 . 1 . Scrap Searched 2 | . . 2 . Spaces Dug 8 | . . 8 . Terrain Destroyed 19 | . . 17 2 Melee . | . . . . Projectile 2 | . . . 2 AOE 17 | . . 17 . Actions | -11 -10 -10 -10 --------- Run | Scr Mat Min Exi Total 1281 | 80 358 494 349 Wait 81 | 7 7 13 54 Move 1090 | 52 326 462 250 Hop . | . . . . Pick Up 11 | 2 6 3 . Fast Attach 7 | 6 1 . . Attach 7 | . . 1 6 Detach . | . . . . Swap 6 | . 3 2 1 Drop 1 | . . 1 . Fire 78 | 13 15 12 38 Melee . | . . . . Ram . | . . . . Kick . | . . . . Crush . | . . . . Escape Stasis . | . . . . Rewire . | . . . . Trap . | . . . . Miscellaneous . | . . . . Route ------- -11/Scrapyard -10/Materials (discovered 2 exits: [*Mat] / *Min) -10/Mines (discovered 2 exits: [*Mat] / *Exi) -10/Exiles (discovered 2 exits: *Min x2) History --------- Turn | Location | Event 26 | -11/Scrapyard | Discovered new exit (range 16) 94 | -11/Scrapyard | Entered Materials 97 | -10/Materials | Discovered new exit (range 15) 217 | -10/Materials | Identified exit to Mines 312 | -10/Materials | Build established: Mutant 315 | -10/Materials | Discovered new exit (range 16) 474 | -10/Materials | Entered Mines 591 | -10/Mines | Assisted by bots powering up and referring to "LRC-V3" 641 | -10/Mines | Deemed a non-threat by the Exiles lab entrance 641 | -10/Mines | Discovered new exit (range 5) 735 | -10/Mines | Discovered new exit (range 13) 776 | -10/Mines | Learned location of Zion (-7) 799 | -10/Mines | Learned location of Storage (-7) 854 | -10/Mines | A weapon hastily lodged in a ceiling crevice suddenly fell to the ground 991 | -10/Mines | Entered Exiles 991 | -10/Exiles | Accompanied by 3 allies 992 | -10/Exiles | Identified exit to Mines 1016 | -10/Exiles | Met 8R-AWN 1031 | -10/Exiles | Met EX-HEX 1066 | -10/Exiles | Met EX-BIN 1078 | -10/Exiles | Aligned with FarCom system 1079 | -10/Exiles | Given EX-Vault access code 1103 | -10/Exiles | Opened EX-Vault 1126 | -10/Exiles | Warned to stay clear of 0b10 Research branches 1144 | -10/Exiles | Exiles lab attacked by MAIN.C 1298 | -10/Exiles | Attacked by the Exiles 1333 | -10/Exiles | Core integrity fell below 50% 1383 | -10/Exiles | Core integrity fell below 20% 1412 | -10/Exiles | Destroyed by 8R-AWN with 8R-AWN's Boregun Last Messages --------------- 01374_ Penetrated by HV Slug. 01374_ HV Slug penetrates Wall. 01378_ Penetrated by HV Slug. 01378_ HV Slug penetrates Wall. 01382_ Penetrated by HV Slug. 01382_ Critical hit. 01382_ Assault Rifle destroyed. 01387_ Penetrated by HV Slug. 01391_ Hvy. Battle Rifle destroyed. 01395_ HV Slug penetrates Wall. 01395_ Penetrated by HV Slug. 01395_ HV Slug penetrates Wall. 01399_ Penetrated by HV Slug. 01399_ Critical hit. 01399_ Ion Engine destroyed. 01399_ Penetrated by HV Slug. 01404_ HV Slug penetrates Wall. 01408_ Penetrated by HV Slug. 01408_ HV Slug penetrates Wall. 01412_ Penetrated by HV Slug. Map ----- +----------------------------------------------------+ | ???????????????????????????????????????????????? | | ???????????????????????????????????????????????? | | ???????????????????????????????????????????????? | | ???????????????????????????????????????????????? | | ???????????????????????????????????????????????? | | ???????????????????????????????????????????????? | | ???????????????????????????????????????????????? | | ???????????????????????????????????????????????? | | ???????????????????????????????????????????????? | | ???????????????????????????????????????????????? | | ???????????????????????????????????????????????? | | ???????????????????????????????????????????????? | | ???????????????????????????????????????????????? | | ????????????????#####??????????????????????????? | | ???????????? ??## ##?????????????????????????? | | ????????????? ## #?????????????????????????? | | ?????????????# ; > #?????????????????????????? | | ?????????????? ; ###???????????????????????? | | ???????????????# #???????????????????????? | | ???????????????# ##???????????????????????? | | ???????????????## #????????????????????????? | | ????????????????; % ;#???????????????????????? | | ????????????????## = ##???????????#######????? | | ??????????????# # % ;######??????#!!! "#????? | | ???????????????# ; *= #""##?????# "#????? | | ?????????????????#; =%@ #?????# "#????? | | ?????????????????### ! ##???## ""#????? | | ??????????????????# %= g #####" ""#????? | | ??????????????????#### ##" ""#????? | | ?????????????????????## #"" #??????? | | ??????????????????????#"#; #??????? | | ??????????????????????#####;# ##?????? | | ???????????????????????????#### "#?????? | | ?????????????????????????????#" ###???? | | ???????????????????????????"""" ##??? | | ????????????????????????? "###"" #### | | ???????????????????????? "#?##" "" | | ???????????????????????? ##??#" | | ??????????????????????? !""""""###???#"# | | ??????????????????????#########??????#### | | ????????????????????????????????????????### | | ??????????????????????????????????????????### | | ????????????????????????????????????????????## | | ?????????????????????????????????????????????## | | ??????????????????????????????????????????????## | | ???????????????????????????????????????????????# | | ???????????????????????????????????????????????# | | ??????????????????????????????????????????????#" | | ??????????????????????????????????????????????#" | | ??????????????????????????????????????????????"" | +----------------------------------------------------+ Best States ------------- Heat Dissipation 25 Energy Generation 10 Energy Capacity 250 Matter Stores 300 Matter Capacity 300 Sight Range 16 Terrain Scan Density 10 Evasion (%) 44 Item Schematics ----------------- None Robot Schematics ------------------ None Fabricated ------------ Nothing Alien Tech Used ----------------- None Achievements -------------- None Challenges ------------ None Game ------ Seed ThunderNuclearBattery Manual? 0 Play Time 00:11:15 Cumulative 97.3 hours Start 2020.08.17 @ 22:19:16 End 2020.08.17 @ 22:27:59 Sessions 1 Manual Loads 0 Difficulty Rogue Special Mode None Game No. 114 Rogue 27 Adventurer 87 Explorer 0 Win Type - Total 3 Types 2/0/0/1/0/0/0 Lore% 48 Gallery% 63 Achievement% 53 Wizard Run 0 Options --------- ASCII 0 Keyboard 1 Movement Numpad Keybinds 0 Fullscreen 1 Font 18/Smallcaps Map View 76x50 Tactical HUD 1 Map Filters NONE Filters NONE Steam 1 RUN: e81d34c5-eeca-433b-b14f-2807395b0a17